[Event "*** Titled Tuesday Blitz"]
[Site "Chess.com"]
[Date "2020.04.21"]
[Round "9"]
[White "FCChelsea14"]
[Black "RATNAKARAN"]
[Result "1/2-1/2"]
[WhiteElo "2744"]
[BlackElo "2586"]
[TimeControl "180+1"]
[EndTime "11:51:39 PDT"]
[Termination "Game drawn - insufficient material"]

1. d4 {[%clk 0:03:00.9]} 1... Nf6 {[%clk 0:02:58.5]} 2. Nf3 {[%clk 0:03:00.7]}
2... g6 {[%clk 0:02:57.9]} 3. c4 {[%clk 0:03:00.3]} 3... Bg7 {[%clk 0:02:58.2]}
4. Nc3 {[%clk 0:03:00.6]} 4... O-O {[%clk 0:02:58.6]} 5. Bf4 {[%clk 0:03:00.8]}
5... d6 {[%clk 0:02:58.9]} 6. h3 {[%clk 0:03:00.7]} 6... Re8 {[%clk 0:02:57.8]}
7. e3 {[%clk 0:03:00.9]} 7... Nbd7 {[%clk 0:02:58]} 8. Be2 {[%clk 0:03:01.1]}
8... c6 {[%clk 0:02:58.5]} 9. O-O {[%clk 0:03:00.8]} 9... Qa5 {[%clk 0:02:58.3]}
10. Qd2 {[%clk 0:02:56.7]} 10... e5 {[%clk 0:02:57.5]} 11. Bh2 {[%clk
0:02:56.2]} 11... exd4 {[%clk 0:02:54.7]} 12. Nxd4 {[%clk 0:02:53.6]} 12... d5
{[%clk 0:02:54.5]} 13. Rfd1 {[%clk 0:02:49.8]} 13... dxc4 {[%clk 0:02:52.8]} 14.
Bxc4 {[%clk 0:02:49.8]} 14... Nb6 {[%clk 0:02:51.1]} 15. Be2 {[%clk 0:02:44.5]}
15... Qg5 {[%clk 0:02:47.5]} 16. Bf4 {[%clk 0:02:43.8]} 16... Qh4 {[%clk
0:02:46.7]} 17. Nf3 {[%clk 0:02:42.7]} 17... Qh5 {[%clk 0:02:44.8]} 18. Ng5
{[%clk 0:02:42.2]} 18... Qh4 {[%clk 0:02:43.1]} 19. g3 {[%clk 0:02:30.7]} 19...
Qh6 {[%clk 0:02:42.5]} 20. h4 {[%clk 0:02:30.9]} 20... Bg4 {[%clk 0:02:34.7]}
21. Nxf7 {[%clk 0:02:30.4]} 21... Qh5 {[%clk 0:02:34.6]} 22. Nd6 {[%clk
0:02:21.7]} 22... Red8 {[%clk 0:02:26.8]} 23. Bxg4 {[%clk 0:02:21.1]} 23... Qxg4
{[%clk 0:02:24.2]} 24. Qe2 {[%clk 0:02:21.2]} 24... Qh3 {[%clk 0:02:24.1]} 25.
Qf1 {[%clk 0:02:20.3]} 25... Qe6 {[%clk 0:02:23.7]} 26. Rd3 {[%clk 0:02:13]}
26... Rd7 {[%clk 0:02:06.2]} 27. Rad1 {[%clk 0:02:11.5]} 27... Nbd5 {[%clk
0:02:01]} 28. Nxd5 {[%clk 0:02:09]} 28... Nxd5 {[%clk 0:01:57.1]} 29. e4 {[%clk
0:01:52.8]} 29... Nxf4 {[%clk 0:01:56]} 30. gxf4 {[%clk 0:01:52.8]} 30... Rad8
{[%clk 0:01:49.9]} 31. e5 {[%clk 0:01:39.7]} 31... Qg4+ {[%clk 0:01:42.7]} 32.
Qg2 {[%clk 0:01:39.7]} 32... Qxf4 {[%clk 0:01:40.1]} 33. e6 {[%clk 0:00:48]}
33... Rc7 {[%clk 0:01:40]} 34. Ne4 {[%clk 0:00:40.7]} 34... Rxd3 {[%clk
0:01:36.5]} 35. Rxd3 {[%clk 0:00:41.6]} 35... Qxh4 {[%clk 0:01:31.2]} 36. Qf3
{[%clk 0:00:38]} 36... Qe7 {[%clk 0:01:17.5]} 37. Qf4 {[%clk 0:00:28.1]} 37...
Bxb2 {[%clk 0:01:09.9]} 38. Nc5 {[%clk 0:00:24.7]} 38... g5 {[%clk 0:01:00.7]}
39. Qg3 {[%clk 0:00:19.3]} 39... Bf6 {[%clk 0:00:52.4]} 40. Rd7 {[%clk
0:00:18.8]} 40... Rxd7 {[%clk 0:00:52]} 41. exd7 {[%clk 0:00:18.7]} 41... Qxc5
{[%clk 0:00:52]} 42. Qc7 {[%clk 0:00:18.6]} 42... Qe7 {[%clk 0:00:46.9]} 43.
Qxb7 {[%clk 0:00:19]} 43... h5 {[%clk 0:00:39.1]} 44. Qxc6 {[%clk 0:00:19.1]}
44... h4 {[%clk 0:00:38]} 45. Qd5+ {[%clk 0:00:19.3]} 45... Kg7 {[%clk
0:00:37.7]} 46. Kg2 {[%clk 0:00:18.8]} 46... g4 {[%clk 0:00:33.2]} 47. Qf5
{[%clk 0:00:19]} 47... Qb4 {[%clk 0:00:28.6]} 48. Qxf6+ {[%clk 0:00:17.2]} 48...
Kxf6 {[%clk 0:00:29.5]} 49. d8=Q+ {[%clk 0:00:17.8]} 49... Qe7 {[%clk
0:00:29.1]} 50. Qh8+ {[%clk 0:00:17.2]} 50... Kf5 {[%clk 0:00:27.6]} 51. Qh5+
{[%clk 0:00:17.2]} 51... Kf4 {[%clk 0:00:25.3]} 52. Qh6+ {[%clk 0:00:17.5]}
52... Qg5 {[%clk 0:00:23.9]} 53. Qd6+ {[%clk 0:00:17.5]} 53... Qe5 {[%clk
0:00:23.4]} 54. Qf8+ {[%clk 0:00:16.4]} 54... Ke4 {[%clk 0:00:21]} 55. Qa8+
{[%clk 0:00:13.8]} 55... Qd5 {[%clk 0:00:20.6]} 56. Qxa7 {[%clk 0:00:14.1]}
56... h3+ {[%clk 0:00:19.9]} 57. Kg1 {[%clk 0:00:10.6]} 57... Qd1+ {[%clk
0:00:18]} 58. Kh2 {[%clk 0:00:10.9]} 58... Qf3 {[%clk 0:00:18.6]} 59. Qb7+
{[%clk 0:00:09]} 59... Kf4 {[%clk 0:00:18.9]} 60. Qf7+ {[%clk 0:00:08.7]} 60...
Ke4 {[%clk 0:00:19.3]} 61. Qb7+ {[%clk 0:00:08.3]} 61... Kf4 {[%clk 0:00:19.6]}
62. Qc7+ {[%clk 0:00:08.6]} 62... Ke4 {[%clk 0:00:19.6]} 63. Qc6+ {[%clk
0:00:08.6]} 63... Kf4 {[%clk 0:00:20]} 64. Qf6+ {[%clk 0:00:08.2]} 64... Ke4
{[%clk 0:00:20.4]} 65. Qc6+ {[%clk 0:00:08.2]} 65... Kf4 {[%clk 0:00:20.7]} 66.
Qc4+ {[%clk 0:00:08.1]} 66... Qe4 {[%clk 0:00:20.1]} 67. Qc1+ {[%clk 0:00:07.2]}
67... Kf3 {[%clk 0:00:20]} 68. Qh1+ {[%clk 0:00:07.2]} 68... Kf4 {[%clk
0:00:20.3]} 69. Qc1+ {[%clk 0:00:06.1]} 69... Kf5 {[%clk 0:00:20.4]} 70. Qc8+
{[%clk 0:00:05.6]} 70... Qe6 {[%clk 0:00:20.5]} 71. Qc2+ {[%clk 0:00:04.1]}
71... Qe4 {[%clk 0:00:20.3]} 72. Qc8+ {[%clk 0:00:03.7]} 72... Qe6 {[%clk
0:00:20.5]} 73. Qf8+ {[%clk 0:00:02.9]} 73... Kg5 {[%clk 0:00:20.8]} 74. Qg7+
{[%clk 0:00:02.6]} 74... Kf4 {[%clk 0:00:21.1]} 75. Qd4+ {[%clk 0:00:02.8]}
75... Kf5 {[%clk 0:00:21]} 76. a4 {[%clk 0:00:01.8]} 76... Qe5+ {[%clk
0:00:20.5]} 77. Qxe5+ {[%clk 0:00:02.1]} 77... Kxe5 {[%clk 0:00:21.4]} 78. a5
{[%clk 0:00:02.1]} 78... Kd5 {[%clk 0:00:22]} 79. a6 {[%clk 0:00:02.1]} 79...
Kc6 {[%clk 0:00:22.6]} 80. f3 {[%clk 0:00:01.9]} 80... gxf3 {[%clk 0:00:22.4]}
81. Kxh3 {[%clk 0:00:02.8]} 81... Kb6 {[%clk 0:00:22.7]} 82. Kg3 {[%clk
0:00:03.2]} 82... Kxa6 {[%clk 0:00:23.1]} 83. Kf2 {[%clk 0:00:04.1]} 83... Kb6
{[%clk 0:00:23.3]} 84. Kxf3 {[%clk 0:00:05]} 1/2-1/2

[Event "*** Titled Tuesday Blitz"]
[Site "Chess.com"]
[Date "2020.04.21"]
[Round "9"]
[White "IMRosen"]
[Black "wannabe2700"]
[Result "1/2-1/2"]
[WhiteElo "2498"]
[BlackElo "2660"]
[TimeControl "180+1"]
[EndTime "11:51:40 PDT"]
[Termination "Game drawn - insufficient material"]

1. d4 {[%clk 0:03:00.9]} 1... f5 {[%clk 0:02:58.6]} 2. Bf4 {[%clk 0:02:59.8]}
2... Nf6 {[%clk 0:02:58.5]} 3. e3 {[%clk 0:03:00.2]} 3... e6 {[%clk 0:02:56.4]}
4. h3 {[%clk 0:02:52.5]} 4... d6 {[%clk 0:02:55.5]} 5. g4 {[%clk 0:02:51.3]}
5... Nc6 {[%clk 0:02:29]} 6. gxf5 {[%clk 0:02:50.6]} 6... exf5 {[%clk
0:02:28.1]} 7. Nd2 {[%clk 0:02:50.8]} 7... Bd7 {[%clk 0:02:21.3]} 8. Bc4 {[%clk
0:02:45.5]} 8... Qe7 {[%clk 0:02:19.1]} 9. c3 {[%clk 0:02:40.6]} 9... O-O-O
{[%clk 0:02:18]} 10. Qe2 {[%clk 0:02:34.6]} 10... h6 {[%clk 0:02:13.7]} 11.
O-O-O {[%clk 0:02:23.8]} 11... g5 {[%clk 0:02:13.2]} 12. Bh2 {[%clk 0:02:24.5]}
12... Bg7 {[%clk 0:02:12.6]} 13. Ngf3 {[%clk 0:02:09]} 13... Rde8 {[%clk
0:02:11.7]} 14. Ne1 {[%clk 0:01:48]} 14... f4 {[%clk 0:02:03.3]} 15. Nc2 {[%clk
0:01:48.3]} 15... Bxh3 {[%clk 0:01:54.3]} 16. Bxf4 {[%clk 0:01:44.9]} 16... Bg4
{[%clk 0:01:46.8]} 17. f3 {[%clk 0:01:41.9]} 17... gxf4 {[%clk 0:01:44.3]} 18.
fxg4 {[%clk 0:01:41.6]} 18... fxe3 {[%clk 0:01:44.6]} 19. Nf1 {[%clk 0:01:38.2]}
19... h5 {[%clk 0:01:18.9]} 20. g5 {[%clk 0:01:26]} 20... Ne4 {[%clk 0:01:03.2]}
21. Rxh5 {[%clk 0:01:15.6]} 21... Rxh5 {[%clk 0:00:56.5]} 22. Qxh5 {[%clk
0:01:16.5]} 22... e2 {[%clk 0:00:40.4]} 23. Bxe2 {[%clk 0:01:01.3]} 23... Qxg5+
{[%clk 0:00:38.8]} 24. Qxg5 {[%clk 0:00:59.6]} 24... Nxg5 {[%clk 0:00:39.7]} 25.
Bg4+ {[%clk 0:00:59.1]} 25... Kb8 {[%clk 0:00:38.9]} 26. Bd7 {[%clk 0:00:56.6]}
26... Re2 {[%clk 0:00:31.7]} 27. Bxc6 {[%clk 0:00:56.2]} 27... bxc6 {[%clk
0:00:31.7]} 28. Re1 {[%clk 0:00:48.8]} 28... Rf2 {[%clk 0:00:27.1]} 29. Nfe3
{[%clk 0:00:46.1]} 29... Nf3 {[%clk 0:00:14.3]} 30. Rh1 {[%clk 0:00:44]} 30...
Bf6 {[%clk 0:00:13.4]} 31. Nc4 {[%clk 0:00:29.2]} 31... Bg5+ {[%clk 0:00:13.2]}
32. Kb1 {[%clk 0:00:29.7]} 32... Nd2+ {[%clk 0:00:13.3]} 33. Nxd2 {[%clk
0:00:28.5]} 33... Rxd2 {[%clk 0:00:14.2]} 34. Na3 {[%clk 0:00:23.1]} 34... d5
{[%clk 0:00:13.3]} 35. Nc2 {[%clk 0:00:22.9]} 35... a5 {[%clk 0:00:13]} 36. a4
{[%clk 0:00:17.4]} 36... Bf4 {[%clk 0:00:11.7]} 37. Rf1 {[%clk 0:00:17.4]} 37...
Bd6 {[%clk 0:00:11.8]} 38. Ne3 {[%clk 0:00:16.5]} 38... Kb7 {[%clk 0:00:10.3]}
39. Ka2 {[%clk 0:00:14.1]} 39... Re2 {[%clk 0:00:09]} 40. Nf5 {[%clk 0:00:14.6]}
40... Re6 {[%clk 0:00:05.9]} 41. Kb3 {[%clk 0:00:14.9]} 41... Re4 {[%clk
0:00:05.9]} 42. Rh1 {[%clk 0:00:13.9]} 42... Rf4 {[%clk 0:00:06]} 43. Rh5 {[%clk
0:00:11.7]} 43... Kb6 {[%clk 0:00:06.3]} 44. Ne3 {[%clk 0:00:06.1]} 44... Re4
{[%clk 0:00:06.1]} 45. Nc2 {[%clk 0:00:06.6]} 45... Re2 {[%clk 0:00:06]} 46. Rh8
{[%clk 0:00:07.1]} 46... Kb7 {[%clk 0:00:05.9]} 47. Rg8 {[%clk 0:00:06.7]} 47...
Bf4 {[%clk 0:00:05.6]} 48. Rg4 {[%clk 0:00:05.9]} 48... Bd6 {[%clk 0:00:05.8]}
49. Rg1 {[%clk 0:00:06]} 49... Be7 {[%clk 0:00:06]} 50. Rf1 {[%clk 0:00:06.5]}
50... Bd6 {[%clk 0:00:06.4]} 51. Ne1 {[%clk 0:00:07.1]} 51... Be7 {[%clk
0:00:06.6]} 52. Nd3 {[%clk 0:00:07.7]} 52... Bd6 {[%clk 0:00:06.9]} 53. Rf3
{[%clk 0:00:07.5]} 53... Ka7 {[%clk 0:00:07.2]} 54. Rf7 {[%clk 0:00:05.8]} 54...
Re7 {[%clk 0:00:06.5]} 55. Rf3 {[%clk 0:00:05.9]} 55... Kb7 {[%clk 0:00:07.1]}
56. Rh3 {[%clk 0:00:05.8]} 56... Re6 {[%clk 0:00:07.5]} 57. Rh7 {[%clk
0:00:05.7]} 57... Re7 {[%clk 0:00:07.8]} 58. Rxe7 {[%clk 0:00:06]} 58... Bxe7
{[%clk 0:00:08.7]} 59. Kc2 {[%clk 0:00:04.5]} 59... Bd6 {[%clk 0:00:09]} 60. Kd2
{[%clk 0:00:04.9]} 60... Kb6 {[%clk 0:00:09.9]} 61. Ke3 {[%clk 0:00:04.5]} 61...
c5 {[%clk 0:00:09.7]} 62. Kd2 {[%clk 0:00:03]} 62... cxd4 {[%clk 0:00:08.7]} 63.
cxd4 {[%clk 0:00:03.2]} 63... c5 {[%clk 0:00:08.6]} 64. Kc3 {[%clk 0:00:03.4]}
64... c4 {[%clk 0:00:05]} 65. Nf2 {[%clk 0:00:03.6]} 65... Bb4+ {[%clk
0:00:04.6]} 66. Kc2 {[%clk 0:00:04.3]} 66... Kc6 {[%clk 0:00:05]} 67. b3 {[%clk
0:00:04.8]} 67... Bd6 {[%clk 0:00:04.7]} 68. Ng4 {[%clk 0:00:03.1]} 68... Bc7
{[%clk 0:00:04.6]} 69. Ne3 {[%clk 0:00:03.2]} 69... Bb6 {[%clk 0:00:04.5]} 70.
bxc4 {[%clk 0:00:02.8]} 70... dxc4 {[%clk 0:00:04.7]} 71. Nxc4 {[%clk
0:00:01.6]} 71... Bxd4 {[%clk 0:00:04.7]} 72. Nxa5+ {[%clk 0:00:02.2]} 72... Kb6
{[%clk 0:00:05.2]} 73. Nb3 {[%clk 0:00:02.8]} 73... Be5 {[%clk 0:00:04.5]} 74.
Kd3 {[%clk 0:00:03.5]} 74... Bd6 {[%clk 0:00:04.5]} 75. Kc4 {[%clk 0:00:04.1]}
75... Bf8 {[%clk 0:00:05]} 76. Kc3 {[%clk 0:00:02.7]} 76... Ka6 {[%clk
0:00:05.9]} 77. Kc4 {[%clk 0:00:03.2]} 77... Kb6 {[%clk 0:00:06.8]} 78. a5+
{[%clk 0:00:03.6]} 78... Ka6 {[%clk 0:00:07.7]} 79. Kd5 {[%clk 0:00:04]} 79...
Be7 {[%clk 0:00:07.4]} 80. Kc6 {[%clk 0:00:04.5]} 80... Bd8 {[%clk 0:00:08.1]}
81. Kd7 {[%clk 0:00:04.8]} 81... Bxa5 {[%clk 0:00:08.8]} 1/2-1/2

[Event "*** Titled Tuesday Blitz"]
[Site "Chess.com"]
[Date "2020.04.21"]
[Round "9"]
[White "DanielTitichoca"]
[Black "pawnwonder"]
[Result "0-1"]
[WhiteElo "2317"]
[BlackElo "2212"]
[TimeControl "180+1"]
[EndTime "11:51:44 PDT"]
[Termination "pawnwonder won by checkmate"]

1. c4 {[%clk 0:02:58.7]} 1... Nf6 {[%clk 0:02:58.8]} 2. Nc3 {[%clk 0:02:54.5]}
2... g6 {[%clk 0:02:54.7]} 3. g3 {[%clk 0:02:54.2]} 3... Bg7 {[%clk 0:02:55.2]}
4. Bg2 {[%clk 0:02:55.1]} 4... O-O {[%clk 0:02:56.1]} 5. Nf3 {[%clk 0:02:53.9]}
5... d6 {[%clk 0:02:57]} 6. O-O {[%clk 0:02:51.4]} 6... Nc6 {[%clk 0:02:55]} 7.
d3 {[%clk 0:02:49.2]} 7... Nh5 {[%clk 0:02:49.1]} 8. Rb1 {[%clk 0:02:47.2]} 8...
f5 {[%clk 0:02:45.3]} 9. Nd5 {[%clk 0:02:46.2]} 9... e6 {[%clk 0:02:40.8]} 10.
Nc3 {[%clk 0:02:43.7]} 10... f4 {[%clk 0:02:35.7]} 11. Bd2 {[%clk 0:02:35.7]}
11... a5 {[%clk 0:02:34.7]} 12. a3 {[%clk 0:02:34.3]} 12... e5 {[%clk
0:02:31.8]} 13. Nd5 {[%clk 0:02:33.2]} 13... Bg4 {[%clk 0:02:26.3]} 14. b4
{[%clk 0:02:26.5]} 14... axb4 {[%clk 0:02:25.5]} 15. axb4 {[%clk 0:02:27.4]}
15... Ne7 {[%clk 0:02:07.5]} 16. Bc3 {[%clk 0:02:09]} 16... Nxd5 {[%clk
0:02:02.9]} 17. cxd5 {[%clk 0:02:09.9]} 17... Nf6 {[%clk 0:01:56.7]} 18. Nd2
{[%clk 0:02:08.2]} 18... f3 {[%clk 0:01:43.2]} 19. Nxf3 {[%clk 0:02:01.4]} 19...
Nxd5 {[%clk 0:00:48.3]} 20. Qb3 {[%clk 0:02:00.3]} 20... Be6 {[%clk 0:00:47.9]}
21. Ng5 {[%clk 0:01:58.6]} 21... Qxg5 {[%clk 0:00:47.5]} 22. Bxd5 {[%clk
0:01:56.8]} 22... Bf7 {[%clk 0:00:47.3]} 23. Ra1 {[%clk 0:01:50.9]} 23... Qe7
{[%clk 0:00:40.4]} 24. b5 {[%clk 0:01:35.1]} 24... c6 {[%clk 0:00:37.6]} 25.
Bxf7+ {[%clk 0:01:32.7]} 25... Qxf7 {[%clk 0:00:37.5]} 26. Qxf7+ {[%clk
0:01:30.3]} 26... Kxf7 {[%clk 0:00:38.4]} 27. bxc6 {[%clk 0:01:30.5]} 27... bxc6
{[%clk 0:00:39]} 28. Rfb1 {[%clk 0:01:29.7]} 28... Rxa1 {[%clk 0:00:20.7]} 29.
Rxa1 {[%clk 0:01:28.4]} 29... Re8 {[%clk 0:00:21.2]} 30. e4 {[%clk 0:01:23.3]}
30... Re7 {[%clk 0:00:21.2]} 31. Ra6 {[%clk 0:01:20.9]} 31... Rc7 {[%clk
0:00:20.7]} 32. Ba5 {[%clk 0:01:17.4]} 32... Rc8 {[%clk 0:00:17]} 33. Ra7+
{[%clk 0:01:18]} 33... Kg8 {[%clk 0:00:16.6]} 34. Rd7 {[%clk 0:01:12.4]} 34...
Bf8 {[%clk 0:00:16.5]} 35. Bc7 {[%clk 0:01:07.5]} 35... Ra8 {[%clk 0:00:12.9]}
36. Bxd6 {[%clk 0:01:06.3]} 36... Bxd6 {[%clk 0:00:11.6]} 37. Rxd6 {[%clk
0:01:07.2]} 37... Ra3 {[%clk 0:00:12.1]} 38. Kf1 {[%clk 0:01:04.4]} 38... c5
{[%clk 0:00:11.1]} 39. Ke2 {[%clk 0:01:04.7]} 39... Ra2+ {[%clk 0:00:11.2]} 40.
Ke3 {[%clk 0:01:04.8]} 40... Ra3 {[%clk 0:00:11.7]} 41. Rd5 {[%clk 0:01:04.5]}
41... c4 {[%clk 0:00:11.4]} 42. Ke2 {[%clk 0:01:02.9]} 42... Ra2+ {[%clk
0:00:10.5]} 43. Kf3 {[%clk 0:00:59.5]} 43... Ra3 {[%clk 0:00:09.9]} 44. Ke3
{[%clk 0:00:57.4]} 44... Kg7 {[%clk 0:00:07.2]} 45. Rxe5 {[%clk 0:00:56.2]}
45... Rxd3+ {[%clk 0:00:06.8]} 46. Ke2 {[%clk 0:00:56.1]} 46... Rd4 {[%clk
0:00:06.2]} 47. f3 {[%clk 0:00:50.9]} 47... Rd3 {[%clk 0:00:06]} 48. Rc5 {[%clk
0:00:50.5]} 48... Ra3 {[%clk 0:00:04.9]} 49. h4 {[%clk 0:00:48.2]} 49... c3
{[%clk 0:00:04.4]} 50. Ke3 {[%clk 0:00:43.1]} 50... c2+ {[%clk 0:00:03.9]} 51.
Kf4 {[%clk 0:00:43.7]} 51... Ra2 {[%clk 0:00:03.3]} 52. e5 {[%clk 0:00:43.6]}
52... Kf7 {[%clk 0:00:03.7]} 53. Rc6 {[%clk 0:00:41.2]} 53... Ke7 {[%clk
0:00:03.8]} 54. Kg5 {[%clk 0:00:40]} 54... Ke8 {[%clk 0:00:02.2]} 55. Kf6 {[%clk
0:00:36.8]} 55... Ra6 {[%clk 0:00:01.2]} 56. Rxa6 {[%clk 0:00:34.3]} 56... c1=Q
{[%clk 0:00:02.1]} 57. e6 {[%clk 0:00:34.5]} 57... Qc3+ {[%clk 0:00:02]} 58. Kg5
{[%clk 0:00:32.9]} 58... Qd2+ {[%clk 0:00:02.3]} 59. Kf6 {[%clk 0:00:31.9]}
59... Qd4+ {[%clk 0:00:02.4]} 60. Kg5 {[%clk 0:00:29.8]} 60... Qc5+ {[%clk
0:00:03]} 61. Kf6 {[%clk 0:00:28.7]} 61... Qf5+ {[%clk 0:00:03.1]} 62. Kg7
{[%clk 0:00:28.6]} 62... h5 {[%clk 0:00:02.5]} 63. Ra8+ {[%clk 0:00:27.5]} 63...
Ke7 {[%clk 0:00:03]} 64. Ra7+ {[%clk 0:00:28.4]} 64... Kxe6 {[%clk 0:00:03.4]}
65. Ra6+ {[%clk 0:00:29.3]} 65... Ke7 {[%clk 0:00:03.9]} 66. Rxg6 {[%clk
0:00:30.2]} 66... Qf7+ {[%clk 0:00:03.7]} 67. Kh6 {[%clk 0:00:30]} 67... Qxf3
{[%clk 0:00:04.6]} 68. Rg5 {[%clk 0:00:24]} 68... Kf7 {[%clk 0:00:04.8]} 69. Kh7
{[%clk 0:00:16.6]} 69... Qe4+ {[%clk 0:00:04.4]} 70. Kh6 {[%clk 0:00:15.9]}
70... Qe2 {[%clk 0:00:04.2]} 71. Rxh5 {[%clk 0:00:13.3]} 71... Qe6+ {[%clk
0:00:03.8]} 72. Kg5 {[%clk 0:00:12.6]} 72... Qg6+ {[%clk 0:00:04.1]} 73. Kf4
{[%clk 0:00:11.9]} 73... Qxh5 {[%clk 0:00:05]} 74. g4 {[%clk 0:00:11.1]} 74...
Qa5 {[%clk 0:00:05.9]} 75. g5 {[%clk 0:00:12]} 75... Kg7 {[%clk 0:00:06.5]} 76.
Kg4 {[%clk 0:00:12.9]} 76... Qa4+ {[%clk 0:00:06.2]} 77. Kh5 {[%clk 0:00:12.2]}
77... Qd1# {[%clk 0:00:06.6]} 0-1

[Event "*** Titled Tuesday Blitz"]
[Site "Chess.com"]
[Date "2020.04.21"]
[Round "9"]
[White "Funkmaus"]
[Black "P4AD"]
[Result "1-0"]
[WhiteElo "2215"]
[BlackElo "2648"]
[TimeControl "180+1"]
[EndTime "11:51:44 PDT"]
[Termination "Funkmaus won by resignation"]

1. d3 {[%clk 0:02:56.9]} 1... Nf6 {[%clk 0:02:59.9]} 2. g3 {[%clk 0:02:57.2]}
2... d5 {[%clk 0:02:59.4]} 3. Bg2 {[%clk 0:02:57.5]} 3... Bf5 {[%clk 0:02:59.1]}
4. c3 {[%clk 0:02:57.7]} 4... e6 {[%clk 0:02:58.9]} 5. Nf3 {[%clk 0:02:58.2]}
5... h6 {[%clk 0:02:58.5]} 6. Nbd2 {[%clk 0:02:58.5]} 6... c6 {[%clk 0:02:58.9]}
7. O-O {[%clk 0:02:58.1]} 7... Be7 {[%clk 0:02:56.8]} 8. e4 {[%clk 0:02:54.5]}
8... Bh7 {[%clk 0:02:55.3]} 9. e5 {[%clk 0:02:49]} 9... Nfd7 {[%clk 0:02:55]}
10. d4 {[%clk 0:02:49.1]} 10... O-O {[%clk 0:02:54.7]} 11. Nb3 {[%clk
0:02:43.4]} 11... c5 {[%clk 0:02:54.5]} 12. Be3 {[%clk 0:02:40.1]} 12... Nc6
{[%clk 0:02:51.3]} 13. Qd2 {[%clk 0:02:33.3]} 13... cxd4 {[%clk 0:02:45]} 14.
cxd4 {[%clk 0:02:34.1]} 14... Bb4 {[%clk 0:02:42.9]} 15. Qe2 {[%clk 0:02:22.9]}
15... Qb6 {[%clk 0:02:41.1]} 16. Nh4 {[%clk 0:02:00.4]} 16... Rfc8 {[%clk
0:02:40.3]} 17. Qg4 {[%clk 0:01:59]} 17... Kh8 {[%clk 0:02:39.5]} 18. Bxd5
{[%clk 0:01:49]} 18... h5 {[%clk 0:02:19.4]} 19. Qh3 {[%clk 0:01:31.8]} 19...
exd5 {[%clk 0:02:16.8]} 20. Qxd7 {[%clk 0:01:32.6]} 20... Kg8 {[%clk 0:02:01.8]}
21. Qxd5 {[%clk 0:01:25.4]} 21... Ne7 {[%clk 0:01:53.3]} 22. Qf3 {[%clk
0:01:15]} 22... Ng6 {[%clk 0:01:22.6]} 23. Nf5 {[%clk 0:01:06.8]} 23... h4
{[%clk 0:01:10.6]} 24. Rac1 {[%clk 0:00:59]} 24... Qe6 {[%clk 0:01:01.1]} 25.
Rxc8+ {[%clk 0:00:42.9]} 25... Rxc8 {[%clk 0:01:00.4]} 26. Rc1 {[%clk 0:00:43]}
26... Rxc1+ {[%clk 0:00:53]} 27. Nxc1 {[%clk 0:00:40.3]} 27... hxg3 {[%clk
0:00:52.9]} 28. hxg3 {[%clk 0:00:40.8]} 28... Nf8 {[%clk 0:00:52.3]} 29. g4
{[%clk 0:00:39.7]} 29... b6 {[%clk 0:00:48.4]} 30. Nd3 {[%clk 0:00:38.6]} 30...
Be7 {[%clk 0:00:48.1]} 31. Nf4 {[%clk 0:00:37.9]} 31... Qd7 {[%clk 0:00:47.6]}
32. Nh5 {[%clk 0:00:36.5]} 32... Bxf5 {[%clk 0:00:41.7]} 33. gxf5 {[%clk
0:00:37.2]} 33... Nh7 {[%clk 0:00:36.9]} 34. Qg4 {[%clk 0:00:34.8]} 34... Bf8
{[%clk 0:00:36]} 35. Bh6 {[%clk 0:00:32.7]} 35... g6 {[%clk 0:00:31.4]} 36. Bxf8
{[%clk 0:00:25]} 36... Kxf8 {[%clk 0:00:27.8]} 37. e6 {[%clk 0:00:21.7]} 37...
Qc6 {[%clk 0:00:18.8]} 38. fxg6 {[%clk 0:00:16.4]} 38... Qc1+ {[%clk 0:00:18.8]}
39. Kh2 {[%clk 0:00:15.8]} 39... fxg6 {[%clk 0:00:17.8]} 40. Qf3+ {[%clk
0:00:11.9]} 40... Ke7 {[%clk 0:00:12.4]} 41. Qf7+ {[%clk 0:00:11.9]} 41... Kd6
{[%clk 0:00:12.8]} 42. e7 {[%clk 0:00:12]} 42... Qg5 {[%clk 0:00:10.1]} 43. e8=Q
{[%clk 0:00:10.7]} 43... Qxh5+ {[%clk 0:00:09.8]} 44. Kg2 {[%clk 0:00:11.1]}
44... Qg4+ {[%clk 0:00:09.9]} 45. Kf1 {[%clk 0:00:11.4]} 45... Qd1+ {[%clk
0:00:10]} 46. Qe1 {[%clk 0:00:11.1]} 46... Qd3+ {[%clk 0:00:10.3]} 47. Qe2
{[%clk 0:00:11.3]} 47... Qh3+ {[%clk 0:00:10.1]} 48. Ke1 {[%clk 0:00:11.4]}
48... Qh1+ {[%clk 0:00:10.5]} 49. Qf1 {[%clk 0:00:11.8]} 49... Qe4+ {[%clk
0:00:10.2]} 50. Qe2 {[%clk 0:00:12.2]} 50... Qb1+ {[%clk 0:00:10.8]} 51. Kd2
{[%clk 0:00:12.1]} 51... Qxb2+ {[%clk 0:00:10.9]} 52. Ke1 {[%clk 0:00:12.9]}
52... Qc1+ {[%clk 0:00:11]} 53. Qd1 {[%clk 0:00:12.6]} 53... Qc3+ {[%clk
0:00:11.5]} 54. Qd2 {[%clk 0:00:12.6]} 54... Qa1+ {[%clk 0:00:11.8]} 55. Ke2
{[%clk 0:00:13.4]} 55... Ng5 {[%clk 0:00:12.5]} 56. Qff4+ {[%clk 0:00:13.2]}
56... Kd7 {[%clk 0:00:11.9]} 57. Qxg5 {[%clk 0:00:14]} 57... Qb1 {[%clk
0:00:11.8]} 58. Qg4+ {[%clk 0:00:12.6]} 58... Kc7 {[%clk 0:00:11.9]} 59. Qg3+
{[%clk 0:00:12.7]} 59... Kb7 {[%clk 0:00:12.1]} 60. Qgd3 {[%clk 0:00:13.5]}
60... Qa1 {[%clk 0:00:11]} 61. Q3c3 {[%clk 0:00:13.4]} 61... Qh1 {[%clk
0:00:10.2]} 62. d5 {[%clk 0:00:12.4]} 62... Qe4+ {[%clk 0:00:09.8]} 63. Qce3
{[%clk 0:00:12.4]} 63... Qc4+ {[%clk 0:00:10]} 64. Qdd3 {[%clk 0:00:12.1]} 64...
Qxa2+ {[%clk 0:00:10.4]} 65. Kf3 {[%clk 0:00:12.8]} 65... Qb2 {[%clk 0:00:09.9]}
66. Qe7+ {[%clk 0:00:12.4]} 66... Kb8 {[%clk 0:00:09.2]} 67. d6 {[%clk
0:00:12.2]} 67... Qc1 {[%clk 0:00:06.8]} 68. Qc7+ {[%clk 0:00:11.1]} 68... Qxc7
{[%clk 0:00:05.7]} 69. dxc7+ {[%clk 0:00:11.9]} 69... Kxc7 {[%clk 0:00:06.6]}
70. Qxg6 {[%clk 0:00:12.7]} 70... a5 {[%clk 0:00:05.8]} 71. Qb1 {[%clk
0:00:13.4]} 71... Kb7 {[%clk 0:00:06.7]} 72. Ke2 {[%clk 0:00:13.8]} 72... Ka6
{[%clk 0:00:07.6]} 73. Kd3 {[%clk 0:00:14.6]} 73... b5 {[%clk 0:00:08.5]} 74.
Kc3 {[%clk 0:00:15.5]} 74... a4 {[%clk 0:00:09.4]} 75. Kb4 {[%clk 0:00:15.6]}
75... Kb6 {[%clk 0:00:09.7]} 76. Qd3 {[%clk 0:00:15.5]} 1-0